fUSD/lending_fUSD_20240317
["ID","MTS","AMOUNT","RATE_DAILY","PERIOD"]
[319399831,1710711183739,-1000.0,0.00021028,30]
[319399832,1710711183749,-1000.0,0.00021028,30]
[319399833,1710711183759,-1000.0,0.00021028,30]
[319399834,1710711183770,-1000.0,0.00021028,30]
[319399835,1710711183781,-1000.0,0.00021028,30]
[319399836,1710711183791,-1000.0,0.00021028,30]
[319399837,1710711183801,-1000.0,0.00021028,30]
[319399838,1710711183811,-815.50476271,0.00021028,30]
[319399839,1710711183824,-1000.0,0.00021028,120]
[319399840,1710711183835,-1000.0,0.00021028,60]
[319399841,1710711183846,-1000.0,0.00021028,30]
[319399842,1710711183855,-1000.0,0.00021028,30]
[319399843,1710711183865,-906.97,0.00021028,30]
[319399844,1710711183875,-1026.0,0.00021028,5]
[319399845,1710711183885,-373.95536405,0.00021028,5]
[319399846,1710711183897,-1026.0,0.00021028,5]
[319399847,1710711183907,-417.19534398,0.00021028,30]
[319399848,1710711183917,-600.60258234,0.00021028,120]
[319399849,1710711183926,-160.74013792,0.00021028,120]
[319399850,1710711183936,-1341.75964113,0.00021028,120]
[319399851,1710711183946,-360.83539417,0.00021028,30]
[319399852,1710711183956,-434479.8732,0.00021028,7]
[319399853,1710711183968,-636.22870528,0.00021028,120]
[319399854,1710711183978,-338.3232665,0.00021028,10]
[319399855,1710711183989,-1249.999999,0.00021028,120]
[319399856,1710711183999,-868.23319285,0.00021028,30]
[319399857,1710711184011,-492.78137739,0.00021028,120]
[319399858,1710711184022,-2976.74254351,0.00021028,120]
[319399859,1710711184033,-500.0,0.00021028,10]
[319399860,1710711184044,-210.73193861,0.00021028,30]
[319399861,1710711184054,-539.16372742,0.00021028,30]
[319399862,1710711184065,-6138.71248243,0.00021028,120]
[319399863,1710711184077,-1465.11984353,0.00021028,30]
[319399864,1710711184087,-1112.3205384,0.00021028,10]
[319399865,1710711184097,-736.4282767,0.00021028,10]
[319399866,1710711184108,-309.03258655,0.00021028,30]
[319399867,1710711184118,-819.31494093,0.00021028,30]
[319399868,1710711184129,-198.1894723,0.00021028,120]
[319399869,1710711184139,-207.03794148,0.00021028,120]
[319399870,1710711184149,-672.66272204,0.00021028,30]
[319399871,1710711184159,-1389.35740574,0.00021028,60]
[319399872,1710711184169,-1069.85879289,0.00021028,30]
[319399873,1710711184178,-756.0,0.00021028,120]
[319399874,1710711184188,-2025.88726604,0.00021028,30]
[319399875,1710711184198,-3199.21407087,0.00021028,30]
[319399876,1710711184208,-130324.61572444,0.00021028,3]
[319399877,1710711184218,-208.59778219,0.00021028,120]
[319399878,1710711184228,-1000.0,0.00021028,30]
[319399879,1710711184238,-1140.94,0.00021028,30]
[319399880,1710711184248,-2398.07240192,0.00021028,120]
[319399881,1710711184258,-918.629992,0.00021028,30]
[319399882,1710711184268,-2000.0,0.00021028,120]
[319399883,1710711184280,-400000.0,0.00021028,3]
[319399884,1710711184290,-13003.09701339,0.00021028,3]
[319399885,1710711184303,-500.00000099,0.00021028,120]
[319399886,1710711184315,-208406.30739389,0.00021028,7]
[319399887,1710711184324,-150.0,0.00021028,2]
[319399888,1710711184334,-150.0,0.00021028,2]
[319399889,1710711184344,-200.0,0.00021028,2]
[319399890,1710711184354,-7465.60910417,0.00021028,2]
[319399891,1710711184364,-1000.0,0.00021028,2]
[319399892,1710711184373,-1000.0,0.00021028,2]
[319399893,1710711184383,-1000.0,0.00021028,2]
[319399894,1710711184393,-1000.0,0.00021028,2]
[319399895,1710711184404,-1000.0,0.00021028,2]
[319399896,1710711184414,-1000.0,0.00021028,2]
[319399897,1710711184424,-1000.0,0.00021028,2]
[319399898,1710711184435,-1000.0,0.00021028,2]
[319399899,1710711184445,-1000.0,0.00021028,2]
[319399900,1710711184455,-1000.0,0.00021028,2]
[319399901,1710711184465,-1580.44151,0.00021028,2]
[319399902,1710711184476,-428.740509,0.00021028,3]
[319399903,1710711184488,-200.0,0.00021028,30]
[319399904,1710711184498,-389.336264,0.00021028,30]
[319399905,1710711184509,-580.272938,0.00021028,30]
[319399906,1710711184518,-1270.290039,0.00021028,30]
[319399907,1710711184530,-154.5275948,0.00021084,2]
[319399908,1710711184540,-151.30766298,0.00021086,2]
[319399909,1710711184550,-57156.61,0.00021096,2]
[319399910,1710711184560,-150.0,0.00021197,2]
[319399911,1710711184571,-1231.40831719,0.000212,2]
[319399912,1710711184581,-1076.25062865,0.0002121,2]
[319399913,1710711184591,-2958.11,0.00021214,2]
[319399914,1710711184602,-287.70140034,0.00021269,2]
[319399915,1710711184611,-1500.0,0.000213,2]
[319399916,1710711184621,-208.05026,0.00021302,2]
[319399917,1710711184632,-1000.0,0.000214,2]
[319399918,1710711184642,-2958.11,0.00021462,2]
[319399919,1710711184653,-1844.1,0.00021501,2]
[319399920,1710711184664,-1000.0,0.00021535,2]
[319399921,1710711184673,-1000.0,0.00021535,2]
[319399922,1710711184682,-435.7544,0.00021535,2]
[319399923,1710711184692,-1375.530627,0.0002156,5]
[319399924,1710711184702,-208.05026,0.00021576,2]
[319399925,1710711184713,-1000.0,0.0002158,5]
[319399926,1710711184915,-1000.0,0.000216,5]
[319399927,1710711184942,-318.52,0.000216,2]
[319399928,1710711184952,-150.0,0.00021605,2]
[319399929,1710711184961,-1000.0,0.0002162,5]
[319399930,1710711184970,-200.0,0.00021626,2]
[319399931,1710711184979,-800.0,0.00021626,2]
[319399932,1710711184989,-200.0,0.00021626,2]
[319399933,1710711184998,-500.0,0.00021626,2]
[319399934,1710711185008,-166.563263,0.0002163,2]
[319399935,1710711185017,-1000.0,0.0002164,5]
[319399936,1710711185027,-151.13427747,0.00021642,2]
[319399937,1710711185037,-7594.09140291,0.00021643,2]
[319399938,1710711185046,-363.45198863,0.00021643,2]
[319399939,1710711185056,-196.55389114,0.00021643,2]
[319399940,1710711185066,-500.0,0.00021643,7]
[319399941,1710711185075,-500.0,0.00021643,2]
[319399942,1710711185086,-639.60194589,0.00021643,7]
[319399943,1710711185096,-500.0,0.00021643,2]
[319399944,1710711185107,-500.0,0.00021643,2]
[319399945,1710711185117,-500.0,0.00021643,2]
[319399946,1710711185127,-500.0,0.00021643,2]
[319399947,1710711185137,-500.0,0.00021643,2]
[319399948,1710711185147,-500.0,0.00021643,2]
[319399949,1710711185157,-500.0,0.00021643,2]
[319399950,1710711185167,-500.0,0.00021643,2]
[319399951,1710711185177,-500.0,0.00021643,2]
[319399952,1710711185188,-500.0,0.00021643,2]
[319399953,1710711185198,-500.0,0.00021643,2]
[319399954,1710711185208,-500.0,0.00021643,2]
[319399955,1710711185218,-500.0,0.00021643,2]
[319399956,1710711185228,-500.0,0.00021643,2]
[319399957,1710711185238,-500.0,0.00021643,2]
[319399958,1710711185247,-500.0,0.00021643,2]
[319399959,1710711185257,-500.0,0.00021643,2]
[319399960,1710711185267,-500.0,0.00021643,2]
[319399961,1710711185277,-500.0,0.00021643,2]
[319399962,1710711185287,-500.0,0.00021643,2]
[319399963,1710711185297,-500.0,0.00021643,2]
[319399964,1710711185307,-500.0,0.00021643,2]
[319399965,1710711185317,-500.0,0.00021643,2]
[319399966,1710711185327,-500.0,0.00021643,2]
[319399967,1710711185337,-500.0,0.00021643,2]
[319399968,1710711185347,-500.0,0.00021643,2]
[319399969,1710711185357,-500.0,0.00021643,2]
[319399970,1710711185367,-500.0,0.00021643,2]
[319399971,1710711185378,-500.0,0.00021643,2]
[319399972,1710711185387,-500.0,0.00021643,2]
[319399973,1710711185398,-500.0,0.00021643,2]
[319399974,1710711185408,-500.0,0.00021643,2]
[319399975,1710711185418,-500.0,0.00021643,2]
[319399976,1710711185428,-500.0,0.00021643,2]
[319399977,1710711185438,-500.0,0.00021643,2]
[319399978,1710711185448,-500.0,0.00021643,2]
[319399979,1710711185458,-500.0,0.00021643,2]
[319399980,1710711185468,-500.0,0.00021643,2]
[319399981,1710711185479,-500.0,0.00021643,2]
[319399982,1710711185491,-500.0,0.00021643,2]
[319399983,1710711185501,-500.0,0.00021643,2]
[319399984,1710711185511,-393.57767325,0.00021643,2]
[319399985,1710711185521,-424.629798,0.00021644,2]
[319399986,1710711185533,-4943.5131592,0.00021645,2]
[319399987,1710711185543,-93785.3307771,0.00021645,2]
[319399988,1710711185553,-5221.968503,0.00021645,2]
[319399989,1710711185564,-2874.9305114,0.00021645,2]
[319399990,1710711185574,-659.8927867,0.00021645,2]
[319399991,1710711185584,-1000.0,0.0002166,5]
[319399992,1710711185593,-1000.0,0.0002168,5]
[319399993,1710711185603,-287.70140034,0.00021681,2]
[319399994,1710711185613,-1000.0,0.000217,5]
[319399995,1710711185622,-150.0,0.00021702,2]
[319399996,1710711185632,-1000.0,0.0002172,5]
[319399997,1710711185642,-1137.07742116,0.00021734,2]
[319399998,1710711185651,-1000.0,0.0002174,5]
[319399999,1710711185661,-1000.0,0.0002176,5]
[319400000,1710711185671,-400.0,0.0002177,2]
[319400001,1710711185681,-1000.0,0.0002178,5]
[319400002,1710711185692,-150.0,0.000218,2]
[319400003,1710711185701,-600.0,0.000218,2]
[319400004,1710711185710,-500.62569363,0.000218,2]
[319400005,1710711185720,-200.0,0.000218,2]
[319400006,1710711185730,-1000.0,0.000218,5]
[319400007,1710711185739,-1500.0,0.000218,2]
[319400008,1710711185750,-275.5,0.000218,2]
[319400009,1710711185759,-155.07013668,0.00021801,2]
[319400010,1710711185769,-304.02630832,0.00021801,2]
[319400011,1710711185779,-155.0,0.00021801,2]
[319400012,1710711185788,-208.05026,0.0002185,2]
[319400013,1710711185798,-650.0,0.000219,2]
[319400014,1710711185807,-480.0,0.000219,2]
[319400015,1710711185817,-10000.0,0.000219,2]
[319400016,1710711185827,-200.0,0.000219,2]
[319400017,1710711185836,-10000.0,0.000219,2]
[319400018,1710711185847,-1000.0,0.000219,2]
[319400019,1710711185857,-2000.0,0.000219,2]
[319400020,1710711185867,-500.0,0.000219,2]
[319400021,1710711185876,-1200.0,0.000219,2]
[319400022,1710711185885,-207.70944913,0.000219,2]
[319400023,1710711185895,-207.70944911,0.000219,2]
[319400024,1710711185904,-207.70944911,0.000219,2]
[319400025,1710711185914,-250.0,0.00021918,2]
[319400026,1710711185923,-11900.0,0.00021918,2]
[319400027,1710711185932,-2902.86,0.00021918,10]
[319400028,1710711185942,-151.0,0.00021918,2]
[319400029,1710711185951,-500.0,0.00021918,2]
[319400030,1710711185961,-500.0,0.00021918,2]
[319400031,1710711185970,-500.0,0.00021918,2]
[319400032,1710711185980,-500.0,0.00021918,2]
[319400033,1710711185989,-500.0,0.00021918,2]
[319400034,1710711185999,-500.0,0.00021918,2]
[319400035,1710711186008,-500.0,0.00021918,2]
[319400036,1710711186018,-500.0,0.00021918,2]
[319400037,1710711186027,-500.0,0.00021918,2]
[319400038,1710711186036,-500.0,0.00021918,2]
[319400039,1710711186045,-500.0,0.00021918,2]
[319400040,1710711186055,-500.0,0.00021918,2]
[319400041,1710711186065,-500.0,0.00021918,2]
[319400042,1710711186074,-500.0,0.00021918,2]
[319400043,1710711186084,-500.0,0.00021918,2]
[319400044,1710711186094,-500.0,0.00021918,2]
[319400045,1710711186104,-500.0,0.00021918,2]
[319400046,1710711186114,-500.0,0.00021918,2]
[319400047,1710711186123,-500.0,0.00021918,2]
[319400048,1710711186133,-500.0,0.00021918,2]
[319400049,1710711186143,-319.91688027,0.00021918,2]
[319400050,1710711186152,-155.0,0.00021918,2]
[319400051,1710711186161,-165.929557,0.00021959,7]
[319400052,1710711186171,-153.255151,0.00021959,2]
[319400053,1710711186180,-400.0,0.0002197,2]
[319400054,1710711186190,-400.0,0.0002197,2]
[319400055,1710711186199,-400.0,0.0002197,2]
[319400056,1710711186209,-300.0,0.0002197,2]
[319400057,1710711186219,-2000.0,0.00021973,2]
[319400058,1710711186229,-500.0,0.00022,2]
[319400059,1710711186239,-25000.0,0.00022,2]
[319400060,1710711186248,-500.0,0.00022,5]
[319400061,1710711186258,-1864.57258022,0.00022,4]
[319400062,1710711186268,-500.0,0.00022,2]
[319400063,1710711186278,-500.0,0.00022,2]
[319400064,1710711186287,-500.0,0.00022,2]
[319400065,1710711186297,-500.0,0.00022,2]
[319400066,1710711186307,-500.0,0.00022,2]
[319400067,1710711186317,-155.10945235,0.00022,2]
[319400068,1710711186327,-782.60576765,0.00022,2]
[319400069,1710711186337,-3132.63868438,0.00022,5]
[319400070,1710711186347,-20000.0,0.00022,5]
[319400071,1710711186357,-155.27549563,0.00022,2]
[319400072,1710711186367,-1512.00933273,0.00022,5]
[319400073,1710711186378,-20000.0,0.00022,5]
[319400074,1710711186389,-6820.54006666,0.00022,5]
[319400075,1710711186398,-13682.32655711,0.00022,5]
[319400076,1710711186408,-11010.33203721,0.00022,5]
[319400077,1710711186417,-9541.57374113,0.00022,5]
[319400078,1710711186427,-1018.79509225,0.00022,5]
[319400079,1710711186436,-28109.0,0.00022,3]
[319400080,1710711186446,-2659.53,0.00022,5]
[319400081,1710711186455,-500.08659899,0.00022,2]
[319400082,1710711186464,-947.93126591,0.00022,2]
[319400083,1710711186474,-7685.10486665,0.00022,2]
[319400084,1710711186486,-237.60225795,0.00022,2]
[319400085,1710711186496,-1049.48667538,0.00022,2]
[319400086,1710711186505,-400.0,0.00022,3]
[319400087,1710711186515,-1386.0,0.00022,2]
[319400088,1710711186525,-238.68591381,0.00022,2]
[319400089,1710711186535,-281.07958727,0.00022,2]
[319400090,1710711186545,-16681.61824165,0.00022,3]
[319400091,1710711186554,-220.0554652,0.00022,2]
[319400092,1710711186564,-197.5731212,0.00022,2]
[319400093,1710711186574,-80386.68312201,0.00022,2]
[319400094,1710711186585,-1007.61010723,0.00022,2]
[319400095,1710711186595,-1200.0,0.00022,23]
[319400096,1710711186604,-4091.34911764,0.00022,30]
[319400097,1710711186614,-1008.66,0.00022,2]
[319400098,1710711186623,-1008.66,0.00022,2]
[319400099,1710711186634,-318.52,0.00022,2]
[319400100,1710711186643,-8481.0,0.0002202,5]
[319400101,1710711186653,-150.0,0.0002202,2]
[319400102,1710711186663,-150.0,0.00022023,2]
[319400103,1710711186673,-718.0,0.00022028,30]
[319400104,1710711186682,-186.078777,0.00022069,7]
[319400105,1710711186691,-175.220412,0.00022069,2]
[319400106,1710711186701,-222.79291017,0.0002211,2]
[319400107,1710711186711,-208.05026,0.00022123,2]
[319400108,1710711186721,-287.70140034,0.00022138,2]
[319400109,1710711186730,-35305.81946669,0.00022152,2]
[319400110,1710711186740,-150.0,0.00022186,2]
[319400111,1710711186749,-516.52,0.00022186,2]
[319400112,1710711186759,-300.0,0.00022186,2]
[319400113,1710711186770,-150.0,0.00022186,2]
[319400114,1710711186779,-150.0,0.00022186,2]
[319400115,1710711186788,-150.0,0.00022186,2]
[319400116,1710711186798,-414.91,0.00022186,2]
[319400117,1710711186808,-1026.0,0.00022206,2]
[319400118,1710711186818,-150.0,0.00022206,2]
[319400119,1710711186828,-23831.2250412,0.00022226,2]
[319400120,1710711186837,-10453.19,0.00022235,7]
[319400121,1710711186846,-10453.19,0.00022235,7]
[319400122,1710711186855,-10453.19,0.00022235,7]
[319400123,1710711186865,-10453.19,0.00022235,7]
[319400124,1710711186876,-165.929557,0.00022287,7]
[319400125,1710711186886,-153.255151,0.00022287,2]
[319400126,1710711186896,-3112.91565183,0.0002229,2]
[319400127,1710711186906,-489.05178931,0.000223,2]
[319400128,1710711186915,-15092.30585231,0.00022303,5]
[319400129,1710711186926,-433.98,0.00022303,2]
[319400130,1710711186936,-154.5275948,0.00022339,2]
[319400131,1710711186947,-151.30766298,0.00022348,2]
[319400132,1710711186956,-6006.7570792,0.00022396,2]
[319400133,1710711186965,-5000.0,0.00022396,2]
[319400134,1710711186974,-5000.0,0.00022396,2]
[319400135,1710711186983,-5000.0,0.00022396,2]
[319400136,1710711186993,-5000.0,0.00022396,2]
[319400137,1710711187001,-3906.0491,0.000224,2]
[319400138,1710711187011,-155.33791431,0.00022415,2]
[319400139,1710711187020,-155.33791431,0.00022428,2]
[319400140,1710711187029,-424.629798,0.00022466,2]
[319400141,1710711187038,-150.0,0.00022473,2]
[319400142,1710711187048,-32842.57787577,0.000225,2]
[319400143,1710711187057,-2900.0,0.000225,15]
[319400144,1710711187066,-186.078777,0.00022506,7]
[319400145,1710711187077,-175.220412,0.00022506,2]
[319400146,1710711187086,-10453.19,0.00022508,7]
[319400147,1710711187095,-10453.19,0.00022508,7]
[319400148,1710711187104,-214.716244,0.00022572,2]
[319400149,1710711187114,-167.291627,0.00022572,7]
[319400150,1710711187124,-151.30766298,0.00022582,2]
[319400151,1710711187133,-165.929557,0.00022615,7]
[319400152,1710711187142,-153.255151,0.00022615,2]
[319400153,1710711187152,-150.0,0.00022653,2]
[319400154,1710711187162,-150.0,0.00022711,2]
[319400155,1710711187172,-237.45757052,0.00022772,2]
[319400156,1710711187181,-10453.19,0.00022781,7]
[319400157,1710711187276,-10453.19,0.00022781,7]
[319400158,1710711187286,-150.0,0.000228,2]
[319400159,1710711187295,-275.5,0.000228,2]
[319400160,1710711187304,-150.0,0.00022852,2]
[319400161,1710711187314,-56242.27970565,0.000229,2]
[319400162,1710711187324,-15301.5,0.000229,2]
[319400163,1710711187334,-15301.5,0.000229,2]
[319400164,1710711187343,-15301.5,0.000229,2]
[319400165,1710711187353,-15301.5,0.000229,2]
[319400166,1710711187362,-15301.5,0.000229,2]
[319400167,1710711187372,-15301.5,0.000229,2]
[319400168,1710711187381,-15301.5,0.000229,2]
[319400169,1710711187391,-15301.5,0.000229,2]
[319400170,1710711187401,-15301.5,0.000229,2]
[319400171,1710711187410,-15301.5,0.000229,2]
[319400172,1710711187420,-15301.5,0.000229,2]
[319400173,1710711187430,-15301.5,0.000229,2]
[319400174,1710711187440,-15301.5,0.000229,2]
[319400175,1710711187450,-15301.5,0.000229,2]
[319400176,1710711187459,-15301.5,0.000229,2]
[319400177,1710711187468,-15301.5,0.000229,2]
[319400178,1710711187478,-15301.5,0.000229,2]
[319400179,1710711187489,-304.45,0.000229,2]
[319400180,1710711187498,-15301.5,0.000229,2]
[319400181,1710711187507,-15301.5,0.000229,2]
[319400182,1710711187516,-304.45,0.000229,2]
[319400183,1710711187525,-15301.5,0.000229,2]
[319400184,1710711187535,-304.45,0.000229,2]
[319400185,1710711187544,-304.45,0.000229,2]
[319400186,1710711187553,-304.45,0.000229,2]
[319400187,1710711187563,-304.45,0.000229,2]
[319400188,1710711187572,-304.45,0.000229,2]
[319400189,1710711187583,-304.45,0.000229,2]
[319400190,1710711187593,-304.45,0.000229,2]
[319400191,1710711187601,-304.45,0.000229,2]
[319400192,1710711187610,-304.45,0.000229,2]
[319400193,1710711187619,-304.45,0.000229,2]
[319400194,1710711187628,-304.45,0.000229,2]
[319400195,1710711187637,-304.45,0.000229,2]
[319400196,1710711187645,-304.45,0.000229,2]
[319400197,1710711187654,-304.45,0.000229,2]
[319400198,1710711187663,-186.078777,0.00022943,7]
[319400199,1710711187673,-165.929557,0.00022943,7]
[319400200,1710711187683,-153.255151,0.00022943,2]
[319400201,1710711187693,-175.220412,0.00022943,2]
[319400202,1710711187701,-2000.0,0.00022973,2]
[319400203,1710711187711,-305.87379127,0.00023,2]
[319400204,1710711187720,-1000.0,0.00023,4]
[319400205,1710711187731,-1811.30955869,0.00023,2]
[319400206,1710711187741,-220000.0,0.00023,2]
[319400207,1710711187751,-150.0,0.00023,2]
[319400208,1710711187762,-113436.82676188,0.00023,2]
[319400209,1710711187773,-10263.0,0.00023,2]
[319400210,1710711187785,-25000.0,0.00023,3]
[319400211,1710711187795,-44936.75941487,0.00023,2]
[319400212,1710711187803,-29173.51743242,0.00023,7]
[319400213,1710711187812,-219710.75575536,0.00023,2]
[319400214,1710711187822,-4997.64648358,0.00023,2]
[319400215,1710711187831,-137487.64191155,0.00023,3]
[319400216,1710711187843,-1750.0,0.00023,3]
[319400217,1710711187853,-389.336264,0.00023,2]
[319400218,1710711187862,-414.91,0.00023008,2]
[319400219,1710711187872,-367.56,0.00023008,2]
[319400220,1710711187881,-150.0,0.00023009,2]
[319400221,1710711187891,-13115.84599782,0.0002301,2]
[319400222,1710711187900,-150.0,0.00023026,2]
[319400223,1710711187909,-10453.19,0.00023055,7]
[319400224,1710711187918,-10453.19,0.00023055,7]
[319400225,1710711187929,-150.0,0.00023062,2]
[319400226,1710711187940,-1500.0,0.000231,2]
[319400227,1710711187951,-40725.81614903,0.000231,2]
[319400228,1710711187960,-503.47945916,0.000231,2]
[319400229,1710711187968,-150.0,0.0002315,2]
[319400230,1710711187977,-318.52,0.00023155,2]
[319400231,1710711187986,-40713.5216238,0.00023199,3]
[319400232,1710711187995,-800.0,0.00023199,2]
[319400233,1710711188004,-357.0,0.00023199,2]
[319400234,1710711188013,-999.997,0.00023199,2]
[319400235,1710711188022,-3000.0,0.00023199,2]
[319400236,1710711188030,-2419.0,0.00023199,2]
[319400237,1710711188040,-150.0,0.00023199,2]
[319400238,1710711188048,-1458.0,0.00023199,2]
[319400239,1710711188057,-213.0,0.00023199,2]
[319400240,1710711188066,-1623.0,0.00023199,2]
[319400241,1710711188075,-42878.0,0.00023199,2]
[319400242,1710711188084,-5668.0,0.00023199,2]
[319400243,1710711188093,-4762.0,0.00023199,2]
[319400244,1710711188102,-2428.0,0.00023199,2]
[319400245,1710711188111,-457.0,0.00023199,2]
[319400246,1710711188120,-1227.0,0.00023199,2]
[319400247,1710711188129,-1044.0,0.00023199,2]
[319400248,1710711188138,-536.0,0.00023199,2]
[319400249,1710711188148,-6722.42907059,0.000232,6]
[319400250,1710711188157,-1008.66,0.00023205,2]
[319400251,1710711188166,-1008.66,0.00023205,2]
[319400252,1710711188175,-1069.0,0.0002321,2]
[319400253,1710711188184,-4892.0,0.0002321,2]
[319400254,1710711188193,-1129.0,0.0002321,2]
[319400255,1710711188203,-361.0,0.0002321,2]
[319400256,1710711188213,-150.0,0.00023216,2]
[319400257,1710711188222,-816.82,0.00023284,2]
[319400258,1710711188232,-177.06,0.00023288,14]
[319400259,1710711188242,-424.629798,0.00023288,2]
[319400260,1710711188252,-155.0,0.00023288,2]
[319400261,1710711188262,-287.70140034,0.00023304,2]
[319400262,1710711188273,-10453.19,0.00023328,7]
[319400263,1710711188281,-10453.19,0.00023328,7]
[319400264,1710711188291,-1026.0,0.00023375,2]
[319400265,1710711188300,-252.26925105,0.00023424,2]
[319400266,1710711188310,-154.06087022,0.00023429,2]
[319400267,1710711188319,-3000.0,0.0002344,2]
[319400268,1710711188330,-150.0,0.00023446,2]
[319400269,1710711188339,-1069.0,0.00023449,2]
[319400270,1710711188348,-4892.0,0.00023449,2]
[319400271,1710711188358,-1129.0,0.00023449,2]
[319400272,1710711188369,-361.0,0.00023449,2]
[319400273,1710711188381,-13000.0,0.000235,2]
[319400274,1710711188391,-5680.401,0.000235,2]
[319400275,1710711188400,-1918.63826719,0.0002354,2]
[319400276,1710711188410,-154.5275948,0.00023542,2]
[319400277,1710711188419,-318.52,0.00023555,2]
[319400278,1710711188429,-150.0,0.00023556,2]
[319400279,1710711188439,-150.0,0.00023556,2]
[319400280,1710711188449,-5175.99410113,0.0002358,2]
[319400281,1710711188460,-8320.32709359,0.000236,2]
[319400282,1710711188470,-10453.19,0.00023601,7]
[319400283,1710711188483,-10453.19,0.00023601,7]
[319400284,1710711188497,-150.0,0.00023638,2]
[319400285,1710711188506,-166.66666667,0.00023649,2]
[319400286,1710711188515,-1069.0,0.00023689,2]
[319400287,1710711188526,-4892.0,0.00023689,2]
[319400288,1710711188535,-1129.0,0.00023689,2]
[319400289,1710711188544,-361.0,0.00023689,2]
[319400290,1710711188554,-150.0,0.0002372,2]
[319400291,1710711188564,-158.29036305,0.00023726,2]
[319400292,1710711188574,-150.21260499,0.00023743,2]
[319400293,1710711188585,-151.12768755,0.00023774,2]
[319400294,1710711188594,-724.26521493,0.000238,15]
[319400295,1710711188605,-200.0,0.000238,2]
[319400296,1710711188614,-3000.0,0.000238,2]
[319400297,1710711188623,-275.5,0.000238,2]
[319400298,1710711188634,-150.0,0.00023833,2]
[319400299,1710711188644,-10453.19,0.00023874,7]
[319400300,1710711188654,-10453.19,0.00023874,7]
[319400301,1710711188666,-150.0,0.00023921,2]
[319400302,1710711188675,-1069.0,0.00023928,2]
[319400303,1710711188686,-783.78179378,0.00023928,2]
[319400304,1710711188697,-4892.0,0.00023928,2]
[319400305,1710711188709,-1129.0,0.00023928,2]
[319400306,1710711188718,-361.0,0.00023928,2]
[319400307,1710711188728,-2000.0,0.00023973,2]
[319400308,1710711188740,-155.33791431,0.00023989,2]
[319400309,1710711188750,-155.41443276,0.00024,2]
[319400310,1710711188760,-206.87027926,0.00024,2]
[319400311,1710711188770,-22000.0,0.00024,2]
[319400312,1710711188781,-25000.0,0.00024,2]
[319400313,1710711188790,-938.46375263,0.00024,2]
[319400314,1710711188801,-400.0,0.00024,4]
[319400315,1710711188811,-500.0,0.00024,2]
[319400316,1710711188822,-15000.0,0.00024,5]
[319400317,1710711188831,-296.68121543,0.00024,2]
[319400318,1710711188841,-550.24371038,0.00024,2]
[319400319,1710711188851,-201.67065339,0.00024,33]
[319400320,1710711188861,-1200.0,0.00024,25]
[319400321,1710711188871,-150.0,0.00024,10]
[319400322,1710711188882,-150.0,0.00024037,2]
[319400323,1710711188891,-150.0,0.00024071,2]
[319400324,1710711188901,-150.0,0.00024072,2]
[319400325,1710711188910,-1026.50544534,0.000241,2]
[319400326,1710711188920,-7076.08468844,0.000241,2]
[319400327,1710711188929,-150.0,0.00024104,2]
[319400328,1710711188939,-424.629798,0.0002411,2]
[319400329,1710711188948,-15000.0,0.0002411,2]
[319400330,1710711188958,-167.76085613,0.00024123,2]